Cogmind - Beta 16 @@@ ROGUE MODE // 2025.10.28 @ 16:19:21 Player: celerysam Result: Destroyed self with Subdweller Shrapnel Launcher Performance ------------- Evolutions (0) 0 Regions Visited (2) 400 Robots Destroyed (30) 150 Value Destroyed (858) 858 Prototype IDs (1) 20 Alien Tech Used (0) 0 Bonus (0) 0 TOTAL SCORE: 1428 Bonus ------- None Cogmind --------- Core Integrity 0/250 Matter 12/300 Energy 218/280 System Corruption 0% Temperature Cool (0) Movement Rolling (120) Ox2 Location -10/Subcaves Parts ------- > --- POWER (1) -------- Heavy Ion Engine > --- PROPULSION (2) --- Wheel Compact Wheel > --- UTILITY (2) ------ High-capacity Storage Unit Signal Interpreter > --- WEAPON (2) ------- EMP Blaster Subdweller Shrapnel Launcher > --- INVENTORY (20) --- Improved Ion Engine Heavy Ion Engine Subdweller Power Source Light Nuclear Core Small Storage Unit Huge Storage Unit Light Humpback ECM Suite Core Shielding Hacking Suite Battle Rifle Improved Light Cannon Improved Light Cannon Battle Cannon Datajack Mining Laser Peak State ------------ > --- POWER ------------ Heavy Ion Engine > --- PROPULSION ------- Wheel Compact Wheel > --- UTILITY ---------- High-capacity Storage Unit Signal Interpreter > --- WEAPON ----------- Improved Light Cannon Improved Light Cannon > --- INVENTORY -------- Improved Ion Engine Heavy Ion Engine Light Nuclear Core Compact Wheel Small Storage Unit Huge Storage Unit ECM Suite Core Shielding Hacking Suite Improved Light Cannon EMP Blaster Grenade Launcher Datajack Mining Laser [Rating: 13] Favorites ----------- Power Heavy Ion Engine Engine Heavy Ion Engine Propulsion Wheel Treads Light Treads Leg Aluminum Leg Wheel Wheel Utility Signal Interpreter Storage High-capacity Storage Unit Processor Signal Interpreter Weapon Improved Light Cannon Energy Gun Beam Rifle Ballistic Cannon Improved Light Cannon Launcher Grenade Launcher Special Weapon Mining Laser Build | -11 -10 -10 ------- Run | Yrd Mat Sub Slots Evolved . | . . . Power . | . . . Propulsion . | . . . Utility . | . . . Weapon . | . . . Parts Attached 28 | 6 16 6 Power 4 | 1 3 . Engine 4 | 1 3 . Core . | . . . Reactor . | . . . Propulsion 8 | 2 4 2 Treads 2 | . 2 . Leg 2 | 2 . . Wheel 4 | . 2 2 Hover . | . . . Flight . | . . . Utility 5 | 1 4 . Device . | . . . Storage 3 | 1 2 . Processor 2 | . 2 . Hackware . | . . . Protection . | . . . Artifact . | . . . Weapon 11 | 2 5 4 Energy Gun 3 | 2 1 . Energy Cannon . | . . . Ballistic Gun . | . . . Ballistic Cannon 4 | . 3 1 Launcher 3 | . . 3 Special Weapon 1 | . 1 . Impact Weapon . | . . . Slashing Weapon . | . . . Piercing Weapon . | . . . Special Melee Weapon . | . . . Unidentified Prototypes 1 | . 1 . Parts Lost 9 | . 5 4 Power 1 | . 1 . Propulsion 3 | . 1 2 Utility 1 | . 1 . Weapon 4 | . 2 2 Highest Loss Streak 5 | . 5 2 To Critical Strikes . | . . . Average Backups 10 | 4 7 15 Power 2 | . 2 3 Propulsion 1 | 3 1 . Utility 3 | . 2 5 Weapon 2 | . 1 5 Tool/Special . | . . . Unused Backups 11 | . 2 9 Power 4 | . 1 3 Propulsion . | . . . Utility 4 | . . 4 Weapon 2 | . 1 1 Tool/Special 1 | . . 1 Average Slot Usage (%) 96 | . 95 99 Engine 13 | . 13 14 Treads 4 | . 7 . Leg 2 | . 4 . Wheel 19 | . 14 27 Storage 14 | . 14 14 Processor 12 | . 11 14 Energy Gun 4 | . 7 . Ballistic Cannon 16 | . 19 12 Launcher 5 | . . 14 Special Weapon 1 | . 1 . Peak Build Rating 13 | 6 12 13 Average Rating 11 | 3 11 12 On Entrance 6 | . 6 12 Avg Prop Armor Cover (%) 12 | . 12 . Naked Turns . | . . . Heaviest Build 96 | 12 96 60 Greatest Support 40 | 20 40 26 Greatest Overweight (x) 3 | . 3 3 Average Overweight (x) 1 | . 1 2 Largest Inventory Capacity 25 | 8 25 20 Average Capacity 16 | 6 14 20 Most Carried 18 | 6 14 18 Average Carried 10 | 4 7 15 Final Capacity 20 | 8 20 20 Final Carried 17 | 6 14 17 Class Distribution -------------------- 100% | Mutant Dominant Class ---------------- Mutant | -10/Materials Mutant | -10/Subcaves Resources | -11 -10 -10 ----------- Run | Yrd Mat Sub Matter Collected 745 | 153 494 98 Remotely . | . . . Salvage Created 756 | . 575 181 Parts 56 | . 37 19 Haulers Intercepted 2 | . 2 . Recyclers Shooed . | . . . Parts Field Recycled . | . . . Retrieved Matter . | . . . Parts Self-Destructed 5 | . . 5 Prevented . | . . . Parts Restored . | . . . Kills | -11 -10 -10 ------- Run | Yrd Mat Sub Combat Hostiles Destroyed 26 | . 17 9 Guns 6 | . 6 . Cannons 16 | . 11 5 AOE 4 | . . 4 Classes Destroyed 6 | . 5 1 Hauler 2 | . 2 . Operator 1 | . 1 . Watcher 1 | . 1 . Swarmer 6 | . 3 3 Grunt 14 | . 14 . Subdweller 6 | . . 6 Best Kill Streak 10 | . 10 3 Combat Bots Only 9 | . 9 3 Max Kills in Single Turn 1 | . 1 1 Gunslinging . | . . . Exploded 1 | . . 1 Melee . | . . . Uniques/NPCs Destroyed . | . . . Combat | -11 -10 -10 -------- Run | Yrd Mat Sub Hostile Shots Fired 143 | . 94 49 Missed 45 | . 25 20 Hits 98 | . 69 29 Projectile 98 | . 69 29 Critical Strikes 1 | . 1 . Damage Taken 1403 | . 909 494 Core 250 | . 153 97 Absorbed by Shields . | . . . Core Remaining (%) 100 | 100 . . Volleys Fired 80 | . 58 22 Largest 2 | . 2 2 Hottest 100 | . 100 73 Shots Fired 144 | . 101 43 Gun 32 | . 32 . Cannon 94 | . 67 27 Launcher 16 | . . 16 Special 2 | . 2 . Kinetic 96 | . 67 29 Thermal 34 | . 34 . Explosive 7 | . . 7 Electromagnetic 7 | . . 7 Robot Hit Streak 7 | . 7 7 Robot Miss Streak 6 | . 6 2 Penetration Max . | . . . Secondary Targets . | . . . Shots Hit Robots 86 | . 60 26 Core Hits 39 | . 25 14 Critical Kills . | . . . Critical Parts Destroyed . | . . . Critical Strikes 4 | . 2 2 Burn 2 | . 2 . Blast 2 | . . 2 Melee Attacks . | . . . Impact . | . . . Slashing . | . . . Piercing . | . . . Sneak Attacks . | . . . Combat Hostiles . | . . . Follow-up Attacks . | . . . Damage Inflicted 2264 | . 1158 1106 Guns 364 | . 364 . Cannons 1116 | . 794 322 Explosions 784 | . . 784 Melee . | . . . Ramming . | . . . Kinetic 1274 | . 794 480 Thermal 415 | . 364 51 Explosive 404 | . . 404 Electromagnetic 171 | . . 171 Impact . | . . . Slashing . | . . . Piercing . | . . . Highest Corruption . | . . . Average Corruption . | . . . Corruption Purged . | . . . Corruption Blocked . | . . . Overload Shots . | . . . Overflow Damage 17 | . 17 . Projectiles 17 | . 17 . Explosions . | . . . Melee . | . . . Knockbacks 12 | . 6 6 Impact . | . . . Kinetic 12 | . 6 6 Secondary . | . . . Self-Inflicted Damage 26 | . . 26 Shots 2 | . . 2 Rammed . | . . . Targets Rammed . | . . . Kicked . | . . . Crushed . | . . . Highest Temperature 552 | . 552 . Average Temperature 161 | . 161 . Received Heat Transfer 516 | . 465 51 Effects 10 | . 10 . Shutdowns 1 | . 1 . Interference 2 | . 2 . Matter Decay 3 | . 3 . Short Circuit 2 | . 2 . Damage (major) 1 | . 1 . Damage (core) 1 | . 1 . Siege Activations . | . . . Martial Activations . | . . . Shielding Activations . | . . . Robots Disrupted . | . . . Combat Hostiles . | . . . Robots Corrupted . | . . . Combat Hostiles . | . . . Parts Fried . | . . . Impact Corruptions . | . . . Robots Melted . | . . . Combat Hostiles . | . . . Parts Melted 3 | . 3 . Heat Transferred 1123 | . 1073 50 Parts Sabotaged . | . . . Parts Stolen . | . . . Parts Stripped . | . . . Power Chain Reactions 1 | . . 1 Alert | -11 -10 -10 ------- Run | Yrd Mat Sub Maximum Alert Level . | . . . Low Security (%) 100 | 100 100 . Level 1 . | . . . Level 2 . | . . . Level 3 . | . . . Level 4 . | . . . Level 5 . | . . . High Security . | . . . Max Security . | . . . Peak Influence 158 | . 158 . Initial . | . . . Average 69 | . 74 . Influence Increases 559 | . 474 85 Destroy 0b10 Robot/C 400 | . 340 60 Destroy 0b10 Robot/NC 20 | . 20 . Destroy Leader 86 | . 76 10 Disable Machine 30 | . 30 . Destroy Structure 8 | . 8 . Lose Combat Pursuer 15 | . . 15 Influence Decreases 559 | . 406 153 Entered New Map 33 | . . 33 Time Decay 456 | . 356 100 Lost Part 70 | . 50 20 Squads Dispatched 4 | . 4 . Investigation 2 | . 2 . Extermination . | . . . Reinforcement 2 | . 2 . Assault . | . . . Garrison . | . . . Intercept . | . . . Searches Triggered . | . . . Construction Impeded . | . . . Haulers Reinforced . | . . . Active Scanning Responses . | . . . Cargo Convoy Interrupts . | . . . Stealth | -11 -10 -10 --------- Run | Yrd Mat Sub Distress Signals 1 | . 1 . Communications Jammed . | . . . Distress Signals . | . . . Times Spotted 40 | . 28 12 Peak Tracking Total 9 | . 9 3 Tactical Retreats 2 | . 1 1 Traps | -11 -10 -10 ------- Run | Yrd Mat Sub Traps Triggered 2 | . 2 . Indirectly . | . . . Trap Hack Attempts . | . . . Triggered . | . . . Disarmed . | . . . Reprogrammed . | . . . Reused . | . . . Traps Extracted . | . . . Installed . | . . . Triggered . | . . . Machines | -11 -10 -10 ---------- Run | Yrd Mat Sub Machines Disabled 2 | . 2 . Max in Single Turn 1 | . 1 . Machines Repaired . | . . . Machines Dismantled . | . . . Machines Sabotaged . | . . . Overloaded Fab Kills . | . . . Hacking | -11 -10 -10 --------- Run | Yrd Mat Sub Machines Accessed . | . . . Terminals . | . . . Fabricators . | . . . Repair Stations . | . . . Recycling Units . | . . . Scanalyzers . | . . . Garrison Access . | . . . Total Hacks . | . . . Successful . | . . . Failed . | . . . Catastrophic . | . . . Database Lockouts . | . . . Manual . | . . . Terminals . | . . . Fabricators . | . . . Repair Stations . | . . . Recycling Units . | . . . Scanalyzers . | . . . Garrison Access . | . . . Terminal Hacks . | . . . Fabricator Hacks . | . . . Repair Station Hacks . | . . . Recycling Unit Hacks . | . . . Scanalyzer . | . . . Garrison Access Hacks . | . . . Unauthorized Hacks . | . . . Terminals . | . . . Fabricators . | . . . Repair Stations . | . . . Recycling Units . | . . . Scanalyzers . | . . . Garrison Access . | . . . Data Cores Recovered 1 | . 1 . Used . | . . . Hacking Detections . | . . . Full Trace Events . | . . . Feedback Events . | . . . Feedback Blocked . | . . . Robot Schematics Acquired . | . . . Robots Built . | . . . Authchips . | . . . Time . | . . . Total Robot Build Rating . | . . . Part Schematics Acquired . | . . . Parts Built . | . . . Authchips . | . . . Time . | . . . Total Part Build Rating . | . . . Part Studies Acquired . | . . . Parts Repaired . | . . . Time . | . . . Parts Recycled . | . . . Recycled Matter . | . . . Retrieved Matter . | . . . Retrieved Components . | . . . Parts Scanalyzed . | . . . Part Schematics Acquired . | . . . Parts Damaged . | . . . Bothacking | -11 -10 -10 ------------ Run | Yrd Mat Sub Used RIF Installer . | . . . Robots Hacked . | . . . Non-combat . | . . . Combat . | . . . Robot Hacks Applied . | . . . Relay Couplers Released . | . . . Fabnet Peak Effective % . | . . . Robots Rewired . | . . . Allies Hacked . | . . . Hacks Repelled . | . . . Allies | -11 -10 -10 -------- Run | Yrd Mat Sub Total Allies . | . . . Largest Group . | . . . Highest-Rated Group . | . . . Highest-Rated Ally . | . . . Total Orders . | . . . Ally Attacks . | . . . Total Damage . | . . . Kills . | . . . Allies Corrupted . | . . . Allies Melted . | . . . Intel | -11 -10 -10 ------- Run | Yrd Mat Sub Active Infowar (turns) . | . . . Robot Analysis Total . | . . . Derelict Logs Recovered 1 | . . 1 Drone Launches . | . . . Drone Recoveries . | . . . Exploration | -11 -10 -10 ------------- Run | Yrd Mat Sub Turns Passed 1687 | 67 1009 611 Spaces Moved 1120 | 55 621 444 Core 20 | 20 . . Treads 123 | . 123 . Legs 141 | 35 106 . Wheels 836 | . 392 444 Hover . | . . . Flight . | . . . Fastest Speed 50 | 50 80 120 Average Speed 122 | 94 126 120 Slowest Speed 160 | 120 160 145 Overloaded Moves . | . . . Propulsion Burnouts . | . . . Robots Hopped . | . . . Potential Cave-ins . | . . . Cave-ins Triggered . | . . . Exploration Rate (%) 42 | 4 95 29 Regions Visited 2 Branch Regions 1 Pre-discovered Areas 1 | . . 1 Known Exits Taken 1 | . 1 . Unknown Exits Taken 1 | 1 . . Scrap Searched . | . . . Spaces Dug 2 | . 2 . Terrain Destroyed 59 | . 5 54 Melee . | . . . Projectile 5 | . 5 . AOE 54 | . . 54 Terrain Rammed . | . . . Walls Destroyed . | . . . Machines Disabled . | . . . Actions | -11 -10 -10 --------- Run | Yrd Mat Sub Total 1285 | 67 739 479 Wait 15 | 1 14 . Move 1118 | 54 620 444 Hop . | . . . Pick Up 33 | 6 21 6 Fast Attach 7 | 6 1 . Attach 12 | . 8 4 Detach . | . . . Swap 11 | . 8 3 Drop 9 | . 9 . Fire 80 | . 58 22 Melee . | . . . Ram . | . . . Kick . | . . . Crush . | . . . Escape Stasis . | . . . Rewire . | . . . Trap . | . . . Miscellaneous . | . . . Route ------- -11/Scrapyard -10/Materials (discovered 5 exits: *Mat x3 / [*Min] / *Sub) -10/Subcaves (discovered 2 exits: *Mat x2) History --------- Turn | Location | Event 18 | -11/Scrapyard | Discovered new exit (range 15) 68 | -11/Scrapyard | Entered Materials 171 | -10/Materials | Discovered new exit (range 12) 311 | -10/Materials | Build established: Mutant 515 | -10/Materials | Core integrity fell below 50% 543 | -10/Materials | Destroyed 9 combat bots 547 | -10/Materials | Lost 5 parts (1p1n1u2w) 580 | -10/Materials | Discovered new exit (range 15) 637 | -10/Materials | Identified exit to Materials 708 | -10/Materials | Discovered exit to Materials (range 16) 768 | -10/Materials | Derelicts attacked the area 917 | -10/Materials | Discovered exit to Materials (range 16) 1067 | -10/Materials | Discovered new exit (range 10) 1076 | -10/Materials | Identified exit to Subcaves 1077 | -10/Materials | Entered Subcaves 1125 | -10/Subcaves | Discovered new exit (range 5) 1131 | -10/Subcaves | Identified exit to Materials 1139 | -10/Subcaves | Shifting Twisted Machinery released Battle Rifle 1177 | -10/Subcaves | Core integrity fell below 20% 1193 | -10/Subcaves | Shifting Twisted Machinery released Battle Cannon 1335 | -10/Subcaves | Learned location of Zion (-7) 1455 | -10/Subcaves | Discovered exit to Materials (range 12) 1457 | -10/Subcaves | Shifting Twisted Machinery released Sub. Shrapnel Launcher 1474 | -10/Subcaves | Shifting Twisted Machinery released Piercing Trap 1602 | -10/Subcaves | Shifting Twisted Machinery released Sub. Machine Gun 1628 | -10/Subcaves | Shifting Twisted Machinery released Lgt. Humpback 1677 | -10/Subcaves | A Subdweller sparked back to life 1677 | -10/Subcaves | A Subdweller sparked back to life 1677 | -10/Subcaves | A Subdweller sparked back to life 1688 | -10/Subcaves | Destroyed self with Subdweller Shrapnel Launcher Last Messages --------------- Piercing Trap falls loose from the Twisted Machinery. 01498_ K8-SYL(R) destroyed. Sub. Machine Gun falls loose from the Twisted Machinery. Lgt. Humpback falls loose from the Twisted Machinery. 01636_ Acquired Lgt. Humpback. 01677_ TE-2LT(R) creaks and sparks as it begins to move. 01677_ QN-SAB(R) creaks and sparks as it begins to move. 01677_ DY-C6F(R) creaks and sparks as it begins to move. 01680_ Grenade Launcher destroyed. 01685_ TE-2LT(R) destroyed. 01688_ DY-C6F(R) IFF system glitched. 01688_ QN-SAB(R) suffers critical hit (Meltdown). 01688_ Destroyed Scrap Shield. Map ----- +----------------------------------------------------+ | ???????????????## ###"" ##??????????????????????? | | ???????????????# "" ####????????????????????? | | ???????????????## "<"" #????????????????????? | | ???????????????## "" " #????????????????????? | | ??????????????## "" ####????????????????????? | | ??????????????# " ##??????????????????????? | | ??????????????# " ##?????????????????????? | | ??????????????# """ #?????????????????????? | | ??????????????# " #?????????????????????? | | ??????????????## ## #??######??????????##?? | | ???????????????##### #### ## ########?## #?? | | ?????????????????## ### #?? | | ?????????????????# #?? | | ?????????????????##### # # # #?? | | ???????????????????## ##### #?? | | ????????????????#### ### #?? | | ????????????????# ## ##?? | | ????????????????# ##### ####### ##?? | | ????????????????# #???# ######?????### ##? | | ????????????????# ##?# ;; # ?????????## ## | | ????????????????# #### ; #?????????# # | | ????????????????# ###; ## #???## ## | | ????????????????# ## ??## ##? | | ???????????????## R[ ## ##?? | | ???????????????# *%! ## ##?? | | ???????????????# @ & !& ## ##? | | ???????????????### ### & &%! ### #? | | ?????????????????## ### ; ;## ?## ## | | ??????????????????## ## ;;#???????## # | | ???????????????????# ##????????## # | | ???????????????????## ### ##?????????# | | ????????????????????# ##??####??????###### | | ????????????????????## ##???????????## ### # # | | ?????????????????????## ##??######### ### | | ?????????????????????## #?## ## # # | | ????????????????????## #### ### | | ???????????????????## ### "" ## | | ???????????????????# ###### """"" ## | | ???????????????????# #????## " "#### | | ???????????????????## [ ###?????# "# ###??# | | ????????????????????### ""#???????# "###????? | | ??????????????????????## ""###?????# """#????? | | ???????????????????????# "#?????# #? | | ??????????????????????# ##????# # | | ??????????????????????## ##????# ## | | ???????????????????????# #?????# #?# | | ???????????????????????## ####?????## ##?? ### | | ????????????????????????###?????????##????####??? | | ????????????????????????????????????????????????? | | ????????????????????????????????????????????????? | +----------------------------------------------------+ Best States ------------- Heat Dissipation 25 Energy Generation 14 Energy Capacity 280 Matter Stores 300 Matter Capacity 300 Sight Range 16 Terrain Scan Density 10 Evasion (%) 55 Targeting Accuracy 6 Recoil Reduction 2 Item Schematics ----------------- None Robot Schematics ------------------ None Fabricated ------------ Nothing Repaired ---------- Nothing Studied --------- None Alien Tech Used ----------------- None Achievements -------------- Well Done Challenges ------------ None Game ------ Seed LatentRefineryNetwork Manual? 0 Play Time 00:14:48 Cumulative 275.1 hours Start 2025.10.28 @ 16:00:58 End 2025.10.28 @ 16:19:21 Sessions 1 Manual Loads 0 Difficulty Rogue Special Mode None Game No. 438 Rogue 438 Adventurer 0 Explorer 0 Win Type - Total 1 Types 1/0/0/0/0/0/0/0/0/0 Lore% 64 Gallery% 62 Achievement% 27 Wizard Run 0 Options --------- Layout 1 ASCII 0 Keyboard 0 Movement Mouse Keybinds 0 Fullscreen 2 Font 24/Smallcaps Map View 50x35 Zoom Use 0% Tactical HUD 1 Map Filters NONE Filters NONE Steam 1 RUN: 2f3874a6-3837-4307-ba46-b49e7cf14c30